fUSD/lending_fUSD_20260404
["ID","MTS","AMOUNT","RATE_DAILY","PERIOD"]
[419662322,1775262653388,-500.0,0.00041095,120]
[419662323,1775262653398,-500.0,0.00041095,120]
[419662324,1775262653407,-500.0,0.00041095,120]
[419662325,1775262653417,-845.91,0.00041095,120]
[419662326,1775262653426,-551.17,0.00041095,120]
[419662327,1775262653435,-2715.22,0.00041095,120]
[419662328,1775262653444,-500.0,0.00041095,120]
[419662329,1775262653453,-511.84,0.00041095,120]
[419662330,1775262653463,-500.0,0.00041095,120]
[419662331,1775262653472,-500.0,0.00041095,120]
[419662332,1775262653482,-1612.89,0.00041095,120]
[419662333,1775262653491,-2748.17,0.00041095,120]
[419662334,1775262653502,-500.0,0.00041095,120]
[419662335,1775262653512,-500.0,0.00041095,120]
[419662336,1775262653521,-500.0,0.00041095,120]
[419662337,1775262653530,-550.38,0.00041095,120]
[419662338,1775262653539,-500.0,0.00041095,60]
[419662339,1775262653549,-500.0,0.00041095,120]
[419662340,1775262653558,-2869.67,0.00041095,120]
[419662341,1775262653568,-500.0,0.00041095,120]
[419662342,1775262653577,-898.09,0.00041095,120]
[419662343,1775262653586,-500.0,0.00041095,120]
[419662344,1775262653596,-500.0,0.00041095,120]
[419662345,1775262653605,-527.51534445,0.00041095,120]
[419662346,1775262653614,-500.0,0.00041095,120]
[419662347,1775262653624,-500.0,0.00041095,120]
[419662348,1775262653633,-611.06,0.00041095,120]
[419662349,1775262653643,-500.0,0.00041095,120]
[419662350,1775262653652,-2051.05,0.00041095,120]
[419662351,1775262653662,-500.0,0.00041095,120]
[419662352,1775262653671,-500.0,0.00041095,120]
[419662353,1775262653681,-500.0,0.00041095,120]
[419662354,1775262653690,-426.06422479,0.00041095,120]
[419662355,1775262653700,-500.0,0.00041095,120]
[419662356,1775262653709,-500.0,0.00041095,120]
[419662357,1775262653718,-500.0,0.00041095,120]
[419662358,1775262653727,-500.0,0.00041095,120]
[419662359,1775262653737,-322.64801491,0.00041095,120]
[419662360,1775262653746,-500.0,0.00041095,120]
[419662361,1775262653756,-500.0,0.00041095,120]
[419662362,1775262653765,-500.0,0.00041095,120]
[419662363,1775262653774,-500.0,0.00041095,120]
[419662364,1775262653783,-500.0,0.00041095,120]
[419662365,1775262653792,-500.0,0.00041095,120]
[419662366,1775262653802,-993.3,0.00041095,120]
[419662367,1775262653811,-500.0,0.00041095,120]
[419662368,1775262653820,-500.0,0.00041095,120]
[419662369,1775262653830,-500.0,0.00041095,120]
[419662370,1775262653839,-1997.97,0.00041095,120]
[419662371,1775262653848,-500.0,0.00041095,120]
[419662372,1775262653858,-500.0,0.00041095,120]
[419662373,1775262653867,-1241.84,0.00041095,120]
[419662374,1775262653876,-500.0,0.00041095,120]
[419662375,1775262653886,-500.0,0.00041095,120]
[419662376,1775262653895,-1839.63,0.00041095,120]
[419662377,1775262653904,-500.0,0.00041095,120]
[419662378,1775262653914,-500.0,0.00041095,120]
[419662379,1775262653923,-1545.12,0.00041095,120]
[419662380,1775262653933,-500.0,0.00041095,120]
[419662381,1775262653943,-807.09,0.00041095,120]
[419662382,1775262653952,-405.37256903,0.00041095,120]
[419662383,1775262653962,-500.0,0.00041095,120]
[419662384,1775262653971,-2450.93,0.00041095,120]
[419662385,1775262653983,-3665.14,0.00041095,2]
[419662386,1775262653992,-890.09,0.00041095,120]
[419662387,1775262654001,-500.0,0.00041095,120]
[419662388,1775262654010,-500.0,0.00041095,120]
[419662389,1775262654022,-500.0,0.00041095,120]
[419662390,1775262654031,-500.0,0.00041095,120]
[419662391,1775262654040,-151.0,0.00041095,120]
[419662392,1775262654049,-500.0,0.00041095,120]
[419662393,1775262654059,-1051.15,0.00041095,120]
[419662394,1775262654068,-904.63,0.00041095,7]
[419662395,1775262654077,-500.0,0.00041095,120]
[419662396,1775262654086,-500.0,0.00041095,120]
[419662397,1775262654096,-500.0,0.00041095,120]
[419662398,1775262654105,-500.0,0.00041095,60]
[419662399,1775262654115,-500.0,0.00041095,120]
[419662400,1775262654124,-500.0,0.00041095,120]
[419662401,1775262654134,-1950.51,0.00041095,120]
[419662402,1775262654143,-1556.78,0.00041095,120]
[419662403,1775262654153,-1051.84,0.00041095,120]
[419662404,1775262654162,-500.0,0.00041095,120]
[419662405,1775262654172,-500.0,0.00041095,120]
[419662406,1775262654181,-2974.27,0.00041095,120]
[419662407,1775262654191,-500.0,0.00041095,120]
[419662408,1775262654201,-544.89476625,0.00041095,120]
[419662409,1775262654210,-500.0,0.00041095,120]
[419662410,1775262654219,-500.0,0.00041095,7]
[419662411,1775262654231,-500.0,0.00041095,120]
[419662412,1775262654241,-500.0,0.00041095,120]
[419662413,1775262654251,-2606.2,0.00041095,120]
[419662414,1775262654260,-384.38901469,0.00041095,120]
[419662415,1775262654270,-500.0,0.00041095,120]
[419662416,1775262654279,-500.0,0.00041095,120]
[419662417,1775262654289,-1209.22,0.00041095,120]
[419662418,1775262654298,-500.0,0.00041095,120]
[419662419,1775262654307,-500.0,0.00041095,120]
[419662420,1775262654317,-950.04,0.00041095,120]
[419662421,1775262654326,-500.0,0.00041095,120]
[419662422,1775262654336,-500.0,0.00041095,120]
[419662423,1775262654345,-455.86294533,0.00041095,120]
[419662424,1775262654355,-500.0,0.00041095,120]
[419662425,1775262654364,-2369.85,0.00041095,120]
[419662426,1775262654373,-3406.05,0.00041095,120]
[419662427,1775262654383,-500.0,0.00041095,120]
[419662428,1775262654392,-500.0,0.00041095,120]
[419662429,1775262654401,-1118.26,0.00041095,120]
[419662430,1775262654411,-500.0,0.00041095,120]
[419662431,1775262654420,-588.89,0.00041095,120]
[419662432,1775262654430,-500.0,0.00041095,120]
[419662433,1775262654439,-623.98,0.00041095,120]
[419662434,1775262654449,-500.0,0.00041095,120]
[419662435,1775262654458,-500.0,0.00041095,120]
[419662436,1775262654468,-1119.18,0.00041095,120]
[419662437,1775262654477,-574.04373805,0.00041095,120]
[419662438,1775262654486,-1541.82,0.00041095,120]
[419662439,1775262654496,-500.0,0.00041095,120]
[419662440,1775262654505,-500.0,0.00041095,120]
[419662441,1775262654514,-2256.22,0.00041095,120]
[419662442,1775262654523,-500.0,0.00041095,120]
[419662443,1775262654532,-500.0,0.00041095,120]
[419662444,1775262654541,-1066.93,0.00041095,120]
[419662445,1775262654550,-1490.12,0.00041095,120]
[419662446,1775262654560,-1344.86,0.00041095,120]
[419662447,1775262654569,-500.0,0.00041095,120]
[419662448,1775262654578,-500.0,0.00041095,120]
[419662449,1775262654588,-500.0,0.00041095,120]
[419662450,1775262654597,-500.0,0.00041095,120]
[419662451,1775262654606,-798.63,0.00041095,120]
[419662452,1775262654615,-500.0,0.00041095,120]
[419662453,1775262654624,-500.0,0.00041095,120]
[419662454,1775262654634,-500.0,0.00041095,120]
[419662455,1775262654643,-1308.32,0.00041095,120]
[419662456,1775262654652,-500.0,0.00041095,120]
[419662457,1775262654663,-1218.0,0.00041095,120]
[419662458,1775262654673,-500.0,0.00041095,120]
[419662459,1775262654682,-500.0,0.00041095,120]
[419662460,1775262654692,-2234.05,0.00041095,120]
[419662461,1775262654702,-500.0,0.00041095,120]
[419662462,1775262654711,-2168.12,0.00041095,120]
[419662463,1775262654721,-500.0,0.00041095,120]
[419662464,1775262654730,-500.0,0.00041095,120]
[419662465,1775262654739,-500.0,0.00041095,120]
[419662466,1775262654750,-1127.29,0.00041095,120]
[419662467,1775262654759,-500.0,0.00041095,120]
[419662468,1775262654768,-1174.39,0.00041095,120]
[419662469,1775262654777,-500.0,0.00041095,120]
[419662470,1775262654786,-845.77,0.00041095,120]
[419662471,1775262654796,-500.0,0.00041095,120]
[419662472,1775262654806,-500.0,0.00041095,120]
[419662473,1775262654816,-643.65177207,0.00041095,120]
[419662474,1775262654825,-500.0,0.00041095,120]
[419662475,1775262654835,-500.0,0.00041095,120]
[419662476,1775262654844,-1187.49,0.00041095,120]
[419662477,1775262654854,-500.0,0.00041095,120]
[419662478,1775262654864,-500.0,0.00041095,120]
[419662479,1775262654874,-151.0,0.00041095,120]
[419662480,1775262654884,-500.0,0.00041095,120]
[419662481,1775262654893,-500.0,0.00041095,14]
[419662482,1775262654903,-1534.57,0.00041095,120]
[419662483,1775262654913,-500.0,0.00041095,120]
[419662484,1775262654923,-151.0,0.00041095,120]
[419662485,1775262654932,-589.21,0.00041095,120]
[419662486,1775262654943,-1384.91,0.00041095,120]
[419662487,1775262654954,-1957.86,0.00041095,120]
[419662488,1775262654963,-1734.77,0.00041095,60]
[419662489,1775262654974,-500.0,0.00041095,120]
[419662490,1775262654983,-500.0,0.00041095,120]
[419662491,1775262654993,-620.85,0.00041095,120]
[419662492,1775262655002,-500.0,0.00041095,120]
[419662493,1775262655011,-500.0,0.00041095,120]
[419662494,1775262655020,-500.0,0.00041095,120]
[419662495,1775262655029,-500.0,0.00041095,120]
[419662496,1775262655040,-1213.32,0.00041095,120]
[419662497,1775262655050,-500.0,0.00041095,120]
[419662498,1775262655061,-500.0,0.00041095,120]
[419662499,1775262655071,-500.0,0.00041095,120]
[419662500,1775262655081,-500.0,0.00041095,120]
[419662501,1775262655090,-500.0,0.00041095,120]
[419662502,1775262655099,-500.0,0.00041095,120]
[419662503,1775262655108,-500.0,0.00041095,30]
[419662504,1775262655119,-500.0,0.00041095,120]
[419662505,1775262655128,-500.0,0.00041095,30]
[419662506,1775262655136,-500.0,0.00041095,120]
[419662507,1775262655146,-500.0,0.00041095,120]
[419662508,1775262655155,-1248.48,0.00041095,120]
[419662509,1775262655165,-1857.7,0.00041095,120]
[419662510,1775262655174,-1626.6,0.00041095,120]
[419662511,1775262655183,-2363.29,0.00041095,14]
[419662512,1775262655192,-500.0,0.00041095,120]
[419662513,1775262655201,-500.0,0.00041095,120]
[419662514,1775262655209,-500.0,0.00041095,120]
[419662515,1775262655218,-500.0,0.00041095,120]
[419662516,1775262655227,-5000.0,0.00041095,120]
[419662517,1775262655236,-500.0,0.00041095,120]
[419662518,1775262655244,-252.9413564,0.00041095,120]
[419662519,1775262655253,-1529.48,0.00041095,120]
[419662520,1775262655262,-500.0,0.00041095,120]
[419662521,1775262655271,-500.0,0.00041095,120]
[419662522,1775262655280,-500.0,0.00041095,120]
[419662523,1775262655289,-500.0,0.00041095,120]
[419662524,1775262655298,-500.0,0.00041095,120]
[419662525,1775262655308,-500.0,0.00041095,120]
[419662526,1775262655319,-500.0,0.00041095,120]
[419662527,1775262655328,-500.0,0.00041095,120]
[419662528,1775262655338,-2281.59,0.00041095,120]
[419662529,1775262655348,-500.0,0.00041095,120]
[419662530,1775262655357,-500.0,0.00041095,60]
[419662531,1775262655368,-500.0,0.00041095,30]
[419662532,1775262655377,-500.0,0.00041095,120]
[419662533,1775262655387,-500.0,0.00041095,120]
[419662534,1775262655396,-3062.41,0.00041095,120]
[419662535,1775262655406,-500.0,0.00041095,120]
[419662536,1775262655416,-1183.73,0.00041095,120]
[419662537,1775262655426,-1196.01,0.00041095,120]
[419662538,1775262655436,-1897.73,0.00041095,120]
[419662539,1775262655445,-500.0,0.00041095,120]
[419662540,1775262655455,-500.0,0.00041095,120]
[419662541,1775262655464,-500.0,0.00041095,120]
[419662542,1775262655473,-500.0,0.00041095,120]
[419662543,1775262655482,-500.0,0.00041095,120]
[419662544,1775262655491,-645.44,0.00041095,120]
[419662545,1775262655500,-500.0,0.00041095,120]
[419662546,1775262655509,-381.40241,0.00041095,120]
[419662547,1775262655518,-542.95971788,0.00041095,120]
[419662548,1775262655527,-500.0,0.00041095,120]
[419662549,1775262655536,-500.0,0.00041095,120]
[419662550,1775262655545,-500.0,0.00041095,120]
[419662551,1775262655556,-3979.81,0.00041095,120]
[419662552,1775262655566,-1705.22,0.00041095,120]
[419662553,1775262655577,-500.0,0.00041095,120]
[419662554,1775262655587,-500.0,0.00041095,120]
[419662555,1775262655596,-625.9,0.00041095,120]
[419662556,1775262655607,-500.0,0.00041095,120]
[419662557,1775262655617,-500.0,0.00041095,120]
[419662558,1775262655626,-770.48,0.00041095,120]
[419662559,1775262655636,-500.0,0.00041095,120]
[419662560,1775262655646,-500.0,0.00041095,120]
[419662561,1775262655655,-556.37999585,0.00041095,120]
[419662562,1775262655664,-1629.45,0.00041095,120]
[419662563,1775262655674,-500.0,0.00041095,120]
[419662564,1775262655684,-1000.0,0.00041095,120]
[419662565,1775262655694,-500.0,0.00041095,120]
[419662566,1775262655704,-974.55,0.00041095,120]
[419662567,1775262655713,-3887.73,0.00041095,30]
[419662568,1775262655722,-592.0,0.00041095,7]
[419662569,1775262655731,-500.0,0.00041095,120]
[419662570,1775262655740,-1011.77,0.00041095,120]
[419662571,1775262655749,-500.0,0.00041095,120]
[419662572,1775262655758,-500.0,0.00041095,120]
[419662573,1775262655767,-1702.88,0.00041095,4]
[419662574,1775262655776,-500.0,0.00041095,120]
[419662575,1775262655785,-500.0,0.00041095,120]
[419662576,1775262655794,-542.34,0.00041095,120]
[419662577,1775262655803,-500.0,0.00041095,120]
[419662578,1775262655812,-500.0,0.00041095,120]
[419662579,1775262655821,-500.0,0.00041095,120]
[419662580,1775262655830,-500.0,0.00041095,120]
[419662581,1775262655839,-601.33302914,0.00041095,120]
[419662582,1775262655848,-1375.77,0.00041095,120]
[419662583,1775262655857,-500.0,0.00041095,120]
[419662584,1775262655866,-1609.28,0.00041095,120]
[419662585,1775262655875,-500.0,0.00041095,120]
[419662586,1775262655884,-500.0,0.00041095,120]
[419662587,1775262655894,-500.0,0.00041095,120]
[419662588,1775262655903,-500.0,0.00041095,120]
[419662589,1775262655911,-500.0,0.00041095,120]
[419662590,1775262655920,-573.8519161,0.00041095,120]
[419662591,1775262655929,-500.0,0.00041095,120]
[419662592,1775262655938,-500.0,0.00041095,120]
[419662593,1775262655947,-500.0,0.00041095,120]
[419662594,1775262655956,-500.0,0.00041095,120]
[419662595,1775262655965,-500.0,0.00041095,120]
[419662596,1775262655974,-1268.92,0.00041095,120]
[419662597,1775262655982,-500.0,0.00041095,120]
[419662598,1775262655991,-500.0,0.00041095,120]
[419662599,1775262656000,-500.0,0.00041095,120]
[419662600,1775262656010,-500.0,0.00041095,120]
[419662601,1775262656019,-500.0,0.00041095,120]
[419662602,1775262656029,-11763.99,0.00041095,120]
[419662603,1775262656038,-500.0,0.00041095,120]
[419662604,1775262656047,-500.0,0.00041095,120]
[419662605,1775262656056,-885.27,0.00041095,120]
[419662606,1775262656065,-500.0,0.00041095,120]
[419662607,1775262656074,-500.0,0.00041095,120]
[419662608,1775262656083,-1121.57,0.00041095,120]
[419662609,1775262656092,-500.0,0.00041095,120]
[419662610,1775262656102,-500.0,0.00041095,60]
[419662611,1775262656111,-500.0,0.00041095,30]
[419662612,1775262656120,-500.0,0.00041095,120]
[419662613,1775262656129,-500.0,0.00041095,120]
[419662614,1775262656138,-500.0,0.00041095,120]
[419662615,1775262656147,-943.83,0.00041095,120]
[419662616,1775262656156,-500.0,0.00041095,120]
[419662617,1775262656165,-500.0,0.00041095,120]
[419662618,1775262656174,-3323.34557482,0.00041095,31]
[419662619,1775262656183,-500.0,0.00041095,120]
[419662620,1775262656192,-500.0,0.00041095,120]
[419662621,1775262656201,-322.97092238,0.00041095,120]
[419662622,1775262656210,-500.0,0.00041095,120]
[419662623,1775262656219,-500.0,0.00041095,120]
[419662624,1775262656228,-756.96,0.00041095,120]
[419662625,1775262656237,-500.0,0.00041095,120]
[419662626,1775262656246,-500.0,0.00041095,120]
[419662627,1775262656255,-500.0,0.00041095,120]
[419662628,1775262656264,-3482.33,0.00041095,120]
[419662629,1775262656273,-500.0,0.00041095,120]
[419662630,1775262656282,-500.0,0.00041095,120]
[419662631,1775262656294,-500.0,0.00041095,120]
[419662632,1775262656303,-500.0,0.00041095,90]
[419662633,1775262656313,-515.0,0.00041095,120]
[419662634,1775262656324,-962.56,0.00041095,120]
[419662635,1775262656334,-777.93,0.00041095,120]
[419662636,1775262656343,-500.0,0.00041095,120]
[419662637,1775262656352,-500.0,0.00041095,120]
[419662638,1775262656362,-500.0,0.00041095,120]
[419662639,1775262656371,-4606.89,0.00041095,120]
[419662640,1775262656380,-721.4,0.00041095,120]
[419662641,1775262656389,-1272.75,0.00041095,120]
[419662642,1775262656399,-500.0,0.00041095,120]
[419662643,1775262656407,-500.0,0.00041095,120]
[419662644,1775262656418,-500.0,0.00041095,120]
[419662645,1775262656428,-500.0,0.00041095,120]
[419662646,1775262656437,-545.89259487,0.00041095,120]
[419662647,1775262656447,-1297.64,0.00041095,120]
[419662648,1775262656456,-1000.0,0.00041095,120]
[419662649,1775262656466,-500.0,0.00041095,120]
[419662650,1775262656477,-918.08,0.00041095,120]
[419662651,1775262656487,-262.84966557,0.00041095,120]
[419662652,1775262656496,-500.0,0.00041095,120]
[419662653,1775262656506,-500.0,0.00041095,120]
[419662654,1775262656517,-500.0,0.00041095,120]
[419662655,1775262656526,-963.53,0.00041095,120]
[419662656,1775262656535,-626.41,0.00041095,120]
[419662657,1775262656544,-500.0,0.00041095,120]
[419662658,1775262656554,-500.0,0.00041095,120]
[419662659,1775262656563,-500.0,0.00041095,120]
[419662660,1775262656572,-500.0,0.00041095,120]
[419662661,1775262656580,-500.0,0.00041095,120]
[419662662,1775262656590,-500.0,0.00041095,120]
[419662663,1775262656603,-703.78,0.00041095,120]
[419662664,1775262656612,-500.9,0.00041095,120]
[419662665,1775262656621,-500.0,0.00041095,120]
[419662666,1775262656632,-340.99344413,0.00041095,120]
[419662667,1775262656642,-709.22,0.00041095,120]
[419662668,1775262656651,-530.54,0.00041095,120]
[419662669,1775262656662,-500.0,0.00041095,120]
[419662670,1775262656673,-500.0,0.00041095,120]
[419662671,1775262656682,-1203.8,0.00041095,30]
[419662672,1775262656691,-500.0,0.00041095,120]
[419662673,1775262656701,-2000.0,0.00041095,30]
[419662674,1775262656710,-500.0,0.00041095,120]
[419662675,1775262656719,-500.0,0.00041095,120]
[419662676,1775262656729,-500.0,0.00041095,120]
[419662677,1775262656738,-500.0,0.00041095,120]
[419662678,1775262656748,-500.0,0.00041095,120]
[419662679,1775262656757,-1286.53,0.00041095,120]
[419662680,1775262656767,-1445.28,0.00041095,120]
[419662681,1775262656776,-500.0,0.00041095,120]
[419662682,1775262656786,-500.0,0.00041095,120]
[419662683,1775262656796,-934.03,0.00041095,120]
[419662684,1775262656805,-500.0,0.00041095,120]
[419662685,1775262656815,-500.0,0.00041095,120]
[419662686,1775262656824,-500.0,0.00041095,120]
[419662687,1775262656834,-500.0,0.00041095,120]
[419662688,1775262656844,-500.0,0.00041095,120]
[419662689,1775262656853,-708.41,0.00041095,120]
[419662690,1775262656863,-500.0,0.00041095,120]
[419662691,1775262656871,-500.0,0.00041095,120]
[419662692,1775262656881,-500.0,0.00041095,60]
[419662693,1775262656891,-500.0,0.00041095,120]
[419662694,1775262656900,-500.0,0.00041095,120]
[419662695,1775262656910,-500.0,0.00041095,120]
[419662696,1775262657064,-795.28,0.00041095,120]
[419662697,1775262657075,-500.0,0.00041095,120]
[419662698,1775262657085,-500.0,0.00041095,120]
[419662699,1775262657094,-533.78065356,0.00041095,120]
[419662700,1775262657103,-852.0,0.00041095,120]
[419662701,1775262657112,-500.0,0.00041095,120]
[419662702,1775262657121,-581.83,0.00041095,120]
[419662703,1775262657131,-500.0,0.00041095,120]
[419662704,1775262657139,-500.0,0.00041095,120]
[419662705,1775262657149,-500.0,0.00041095,120]
[419662706,1775262657159,-384.17026774,0.00041095,120]
[419662707,1775262657168,-500.0,0.00041095,120]
[419662708,1775262657177,-500.0,0.00041095,120]
[419662709,1775262657186,-500.0,0.00041095,2]
[419662710,1775262657195,-500.0,0.00041095,120]
[419662711,1775262657204,-628.99735316,0.00041095,120]
[419662712,1775262657213,-500.0,0.00041095,120]
[419662713,1775262657222,-500.0,0.00041095,120]
[419662714,1775262657231,-500.0,0.00041095,120]
[419662715,1775262657240,-500.0,0.00041095,60]
[419662716,1775262657249,-500.0,0.00041095,120]
[419662717,1775262657258,-556.85,0.00041095,120]
[419662718,1775262657268,-500.0,0.00041095,120]
[419662719,1775262657278,-500.0,0.00041095,120]
[419662720,1775262657287,-559.11,0.00041095,120]
[419662721,1775262657296,-500.0,0.00041095,120]
[419662722,1775262657305,-500.0,0.00041095,120]
[419662723,1775262657315,-500.0,0.00041095,120]
[419662724,1775262657324,-500.0,0.00041095,120]
[419662725,1775262657333,-733.75,0.00041095,120]
[419662726,1775262657343,-500.0,0.00041095,120]
[419662727,1775262657352,-500.0,0.00041095,120]
[419662728,1775262657361,-592.65,0.00041095,120]
[419662729,1775262657370,-500.0,0.00041095,120]
[419662730,1775262657379,-500.0,0.00041095,120]
[419662731,1775262657388,-500.0,0.00041095,120]
[419662732,1775262657397,-500.0,0.00041095,120]
[419662733,1775262657411,-500.0,0.00041095,120]
[419662734,1775262657421,-1241.0,0.00041096,120]
[419662735,1775262657430,-150.0,0.00041096,10]
[419662736,1775262657439,-1281.449999,0.00041096,120]
[419662737,1775262657449,-151.0,0.00041097,14]
[419662738,1775262657458,-151.0,0.00041097,14]
[419662739,1775262657467,-151.0,0.00041097,14]
[419662740,1775262657477,-261.23807355,0.00041097,14]
[419662741,1775262657486,-500.0,0.00041099,120]
[419662742,1775262657496,-500.0,0.00041099,120]
[419662743,1775262657505,-518.5,0.00041099,120]
[419662744,1775262657515,-537.6845,0.00041099,120]
[419662745,1775262657525,-557.5788265,0.00041099,120]
[419662746,1775262657534,-578.20924308,0.00041099,120]
[419662747,1775262657543,-599.60298507,0.00041099,120]
[419662748,1775262657553,-621.78829552,0.00041099,120]
[419662749,1775262657562,-644.79446246,0.00041099,120]
[419662750,1775262657572,-668.65185757,0.00041099,120]
[419662751,1775262657581,-200.0,0.00041099,120]
[419662752,1775262657591,-151.0,0.00041099,120]
[419662753,1775262657600,-200.0,0.00041099,120]
[419662754,1775262657610,-151.0,0.00041099,120]
[419662755,1775262657619,-200.0,0.00041099,120]
[419662756,1775262657629,-151.0,0.00041099,120]
[419662757,1775262657638,-200.0,0.00041099,120]
[419662758,1775262657647,-151.0,0.00041099,120]
[419662759,1775262657657,-200.0,0.00041099,120]
[419662760,1775262657666,-151.0,0.00041099,120]
[419662761,1775262657675,-200.0,0.00041099,120]
[419662762,1775262657685,-151.0,0.00041099,120]
[419662763,1775262657694,-200.0,0.00041099,120]
[419662764,1775262657704,-372.16960174,0.00041099,120]
[419662765,1775262657713,-151.0,0.00041099,120]
[419662766,1775262657722,-200.0,0.00041099,120]
[419662767,1775262657732,-151.0,0.00041099,120]
[419662768,1775262657741,-200.0,0.00041099,120]
[419662769,1775262657750,-151.0,0.00041099,120]
[419662770,1775262657760,-151.0,0.00041099,120]
[419662771,1775262657770,-151.0,0.00041099,120]
[419662772,1775262657779,-151.0,0.00041099,120]
[419662773,1775262657788,-151.0,0.00041099,120]
[419662774,1775262657798,-151.0,0.00041099,120]
[419662775,1775262657807,-151.0,0.00041099,120]
[419662776,1775262657816,-151.0,0.00041099,120]
[419662777,1775262657826,-151.0,0.00041099,120]
[419662778,1775262657835,-151.0,0.00041099,120]
[419662779,1775262657845,-151.0,0.00041099,120]
[419662780,1775262657855,-151.0,0.00041099,120]
[419662781,1775262657864,-1030.0,0.00041099,120]
[419662782,1775262657874,-1068.11,0.00041099,120]
[419662783,1775262657884,-1107.63007,0.00041099,120]
[419662784,1775262657893,-1148.61238259,0.00041099,120]
[419662785,1775262657903,-1191.11104075,0.00041099,120]
[419662786,1775262657913,-1235.18214925,0.00041099,120]
[419662787,1775262657922,-1280.88388878,0.00041099,120]
[419662788,1775262657931,-1328.27659266,0.00041099,120]
[419662789,1775262657941,-251.0,0.00041099,120]
[419662790,1775262657950,-260.287,0.00041099,120]
[419662791,1775262657959,-269.917619,0.00041099,120]
[419662792,1775262657970,-620.0,0.00041099,120]
[419662793,1775262657979,-642.94,0.00041099,120]
[419662794,1775262657989,-666.72878,0.00041099,120]
[419662795,1775262657999,-691.39774486,0.00041099,120]
[419662796,1775262658008,-716.97946142,0.00041099,120]
[419662797,1775262658019,-151.0,0.00041099,120]
[419662798,1775262658028,-151.0,0.00041099,120]
[419662799,1775262658038,-151.0,0.00041099,120]
[419662800,1775262658048,-151.0,0.00041099,120]
[419662801,1775262658058,-151.0,0.00041099,120]
[419662802,1775262658068,-151.0,0.00041099,120]
[419662803,1775262658080,-151.0,0.00041099,120]
[419662804,1775262658090,-272.48892847,0.00041099,120]
[419662805,1775262658100,-6888.0,0.00041099,120]
[419662806,1775262658110,-177.53843475,0.00041099,120]
[419662807,1775262658120,-151.0,0.00041099,120]
[419662808,1775262658129,-151.0,0.00041099,120]
[419662809,1775262658139,-7142.856,0.00041099,120]
[419662810,1775262658149,-156.587,0.00041099,120]
[419662811,1775262658158,-160.0,0.00041099,120]
[419662812,1775262658168,-156.587,0.00041099,120]
[419662813,1775262658178,-7407.141672,0.00041099,120]
[419662814,1775262658188,-162.380719,0.00041099,120]
[419662815,1775262658198,-299.76040401,0.00041099,120]
[419662816,1775262658208,-162.380719,0.00041099,120]
[419662817,1775262658217,-168.3888056,0.00041099,120]
[419662818,1775262658227,-168.3888056,0.00041099,120]
[419662819,1775262658237,-520.0,0.00041099,120]
[419662820,1775262658247,-9360.20013635,0.00041099,120]
[419662821,1775262658256,-174.61919141,0.00041099,120]